Cogmind - Beta 13 @@@ ROGUE MODE // 2024.04.20 @ 23:18:31 Player: Ronin_tempest Result: Destroyed by HC-5DJ(R) with Subdweller Beam Cannon Performance ------------- Evolutions (0) 0 Regions Visited (2) 400 Robots Destroyed (18) 90 Value Destroyed (607) 607 Prototype IDs (0) 0 Alien Tech Used (0) 0 Bonus (0) 0 TOTAL SCORE: 1097 Bonus ------- None Cogmind --------- Core Integrity 0/250 Matter 297/300 Energy 153/170 System Corruption 3% Temperature Cool (9) Movement Treading (160) Location -10/Subcaves Parts ------- > --- POWER (1) -------- Makeshift Power Source > --- PROPULSION (2) --- Light Treads Spiked Treads > --- UTILITY (2) ------ Large Storage Unit Signal Interpreter > --- WEAPON (2) ------- EM Pulse Gun Battle Rifle > --- INVENTORY (15) --- Ion Engine Light Treads Wheel Wheel Compact Wheel Small Storage Unit Light Armor Plating Makeshift Light Armor Plating Cobbler Unit Beam Rifle Battle Cannon Grenade Launcher Peak State ------------ > --- POWER ------------ Makeshift Power Source > --- PROPULSION ------- Light Treads Spiked Treads > --- UTILITY ---------- Large Storage Unit Signal Interpreter > --- WEAPON ----------- Subdweller Beam Cannon Assault Rifle > --- INVENTORY -------- Ion Engine Light Treads Wheel Wheel Compact Wheel Small Storage Unit Light Armor Plating Makeshift Light Armor Plating Cobbler Unit EM Pulse Gun Medium Laser Medium Laser Beam Rifle Grenade Launcher [Rating: 14] Favorites ----------- Power Ion Engine Engine Ion Engine Propulsion Light Treads Treads Light Treads Leg Aluminum Leg Utility Signal Interpreter Storage Large Storage Unit Processor Signal Interpreter Weapon EM Pulse Gun Energy Gun EM Pulse Gun Energy Cannon Subdweller Beam Cannon Ballistic Gun Assault Rifle Launcher Grenade Launcher Build | -11 -10 -10 ------- Run | Yrd Mat Sub Slots Evolved . | . . . Power . | . . . Propulsion . | . . . Utility . | . . . Weapon . | . . . Parts Attached 19 | 2 8 9 Power 3 | . 2 1 Engine 3 | . 2 1 Core . | . . . Reactor . | . . . Propulsion 5 | 2 2 1 Treads 5 | 2 2 1 Leg . | . . . Wheel . | . . . Hover . | . . . Flight . | . . . Utility 2 | . 2 . Device . | . . . Storage 1 | . 1 . Processor 1 | . 1 . Hackware . | . . . Protection . | . . . Artifact . | . . . Weapon 9 | . 2 7 Energy Gun 3 | . 2 1 Energy Cannon 1 | . . 1 Ballistic Gun 3 | . . 3 Ballistic Cannon . | . . . Launcher 2 | . . 2 Special Weapon . | . . . Impact Weapon . | . . . Slashing Weapon . | . . . Piercing Weapon . | . . . Special Melee Weapon . | . . . Unidentified Prototypes . | . . . Parts Lost 2 | . 1 1 Power 1 | . 1 . Propulsion . | . . . Utility . | . . . Weapon 1 | . . 1 Highest Loss Streak 1 | . 1 1 To Critical Strikes . | . . . Average Slot Usage (%) 98 | . 96 99 Engine 13 | . 13 13 Treads 28 | . 28 28 Storage 14 | . 14 14 Processor 12 | . 11 14 Energy Gun 14 | . 27 5 Energy Cannon 7 | . . 11 Ballistic Gun 5 | . . 9 Naked Turns . | . . . Heaviest Build 36 | 12 29 36 Greatest Support 40 | 40 40 40 Greatest Overweight (x) . | . . . Average Overweight (x) . | . . . Largest Inventory Capacity 15 | 8 15 15 Average Capacity 12 | 8 8 15 Most Carried 15 | 6 9 15 Average Carried 11 | 6 7 14 Final Capacity 15 | 8 15 15 Final Carried 13 | 6 9 13 Class Distribution -------------------- 100% | Mutant Dominant Class ---------------- Mutant | -10/Materials Mutant | -10/Subcaves Resources | -11 -10 -10 ----------- Run | Yrd Mat Sub Matter Collected 573 | 220 88 265 Remotely . | . . . Salvage Created 751 | . 366 385 Parts 41 | . 14 27 Haulers Intercepted 2 | . 2 . Recyclers Shooed . | . . . Parts Field Recycled . | . . . Retrieved Matter . | . . . Parts Self-Destructed 8 | . . 8 Prevented . | . . . Kills | -11 -10 -10 ------- Run | Yrd Mat Sub Combat Hostiles Destroyed 14 | . 5 9 Guns 7 | . 3 4 Cannons 4 | . . 4 AOE 2 | . 2 . Classes Destroyed 5 | . 3 2 Hauler 2 | . 2 . Watcher 2 | . 2 . Grunt 5 | . 5 . Sentry 1 | . . 1 Subdweller 8 | . . 8 Best Kill Streak 2 | . 2 2 Combat Bots Only 2 | . 2 2 Max Kills in Single Turn 2 | . 2 1 Gunslinging . | . . . Exploded 2 | . 2 . Melee . | . . . Uniques/NPCs Destroyed . | . . . Combat | -11 -10 -10 -------- Run | Yrd Mat Sub Hostile Shots Fired 71 | . 28 43 Missed 16 | . 7 9 Damage Taken 1102 | . 311 791 Core 253 | . 54 199 Absorbed by Shields . | . . . Regen/Repaired (Parts) 136 | . 136 . Core Remaining (%) 100 | 100 . . Volleys Fired 76 | . 31 45 Largest 2 | . 2 2 Hottest 110 | . 90 110 Shots Fired 134 | . 62 72 Gun 92 | . 62 30 Cannon 37 | . . 37 Launcher 5 | . . 5 Special . | . . . Kinetic 19 | . . 19 Thermal 60 | . 23 37 Explosive 5 | . . 5 Electromagnetic 50 | . 39 11 Robot Hit Streak 42 | . 7 42 Robot Miss Streak 3 | . 3 1 Penetration Max . | . . . Secondary Targets . | . . . Shots Hit Robots 75 | . 34 41 Core Hits 32 | . 16 16 Critical Kills 1 | . . 1 Critical Parts Destroyed . | . . . Critical Strikes 3 | . 1 2 Burn 1 | . 1 . Meltdown 1 | . . 1 Corrupt 1 | . . 1 Melee Attacks . | . . . Impact . | . . . Slashing . | . . . Piercing . | . . . Sneak Attacks . | . . . Combat Hostiles . | . . . Follow-up Attacks . | . . . Damage Inflicted 1495 | . 611 884 Guns 787 | . 467 320 Cannons 417 | . . 417 Explosions 291 | . 144 147 Melee . | . . . Ramming . | . . . Kinetic 228 | . . 228 Thermal 747 | . 330 417 Explosive 147 | . . 147 Electromagnetic 373 | . 281 92 Impact . | . . . Slashing . | . . . Piercing . | . . . Highest Corruption 3 | . 3 3 Average Corruption 2 | . 2 3 Corruption Purged . | . . . Corruption Blocked . | . . . Effects 37 | . 7 30 Message Errors 13 | . 4 9 Matter Fused 12 | . 1 11 Heat Flow Errors 3 | . . 3 Energy Discharges 2 | . 1 1 Data Loss (minor) 3 | . 1 2 Data Loss (major) 1 | . . 1 Misfires 3 | . . 3 Overload Shots . | . . . Overflow Damage . | . . . Projectiles . | . . . Explosions . | . . . Melee . | . . . Knockbacks . | . . . Impact . | . . . Kinetic . | . . . Secondary . | . . . Self-Inflicted Damage 12 | . . 12 Shots 1 | . . 1 Rammed . | . . . Targets Rammed . | . . . Kicked . | . . . Crushed . | . . . Highest Temperature 300 | . 300 188 Average Temperature 75 | . 95 25 Received Heat Transfer 345 | . 213 132 Effects 4 | . 4 . Energy Bleed 2 | . 2 . Interference 2 | . 2 . Siege Activations . | . . . Robots Corrupted . | . . . Combat Hostiles . | . . . Parts Fried . | . . . Impact Corruptions . | . . . Robots Melted 1 | . . 1 Combat Hostiles 1 | . . 1 Parts Melted 5 | . 2 3 Heat Transferred 1334 | . 779 555 Parts Sabotaged . | . . . Parts Stolen . | . . . Parts Stripped . | . . . Power Chain Reactions 2 | . 2 . Alert | -11 -10 -10 ------- Run | Yrd Mat Sub Peak Influence 187 | . 187 . Initial . | . . . Average 46 | . 47 . Maximum Alert Level . | . . . Low Security (%) 100 | 100 100 . Level 1 . | . . . Level 2 . | . . . Level 3 . | . . . Level 4 . | . . . Level 5 . | . . . High Security . | . . . Max Security . | . . . Squads Dispatched . | . . . Investigation . | . . . Extermination . | . . . Reinforcement . | . . . Assault . | . . . Garrison . | . . . Intercept . | . . . Searches Triggered . | . . . Construction Impeded . | . . . Haulers Reinforced . | . . . Active Scanning Responses . | . . . Cargo Convoy Interrupts . | . . . Stealth | -11 -10 -10 --------- Run | Yrd Mat Sub Distress Signals 1 | . 1 . Communications Jammed . | . . . Distress Signals . | . . . Times Spotted 24 | . 13 11 Peak Tracking Total 2 | . 2 2 Tactical Retreats 2 | . 2 . Traps | -11 -10 -10 ------- Run | Yrd Mat Sub Traps Triggered 2 | . 2 . Indirectly . | . . . Trap Hack Attempts . | . . . Triggered . | . . . Disarmed . | . . . Reprogrammed . | . . . Reused . | . . . Traps Extracted . | . . . Installed . | . . . Triggered . | . . . Machines | -11 -10 -10 ---------- Run | Yrd Mat Sub Machines Disabled 1 | . 1 . Max in Single Turn 1 | . 1 . Machines Repaired . | . . . Machines Dismantled . | . . . Machines Sabotaged . | . . . Overloaded Fab Kills . | . . . Hacking | -11 -10 -10 --------- Run | Yrd Mat Sub Machines Accessed 9 | . 9 . Terminals 8 | . 8 . Fabricators . | . . . Repair Stations 1 | . 1 . Recycling Units . | . . . Scanalyzers . | . . . Garrison Access . | . . . Total Hacks 28 | . 28 . Successful 17 | . 17 . Failed 11 | . 11 . Catastrophic 1 | . 1 . Database Lockouts . | . . . Manual 14 | . 14 . Terminals 24 | . 24 . Fabricators . | . . . Repair Stations 4 | . 4 . Recycling Units . | . . . Scanalyzers . | . . . Garrison Access . | . . . Terminal Hacks 5 | . 5 . Branch Access Points 1 | . 1 . Terminal Index 1 | . 1 . Locate Traps 2 | . 2 . Zone Layout 1 | . 1 . Fabricator Hacks . | . . . Repair Station Hacks 4 | . 4 . Scan Component 2 | . 2 . Repair 2 | . 2 . Recycling Unit Hacks . | . . . Scanalyzer . | . . . Garrison Access Hacks . | . . . Unauthorized Hacks 8 | . 8 . Terminals 8 | . 8 . Assimilate 3 | . 3 . Botnet 5 | . 5 . Fabricators . | . . . Repair Stations . | . . . Recycling Units . | . . . Scanalyzers . | . . . Garrison Access . | . . . Data Cores Recovered . | . . . Used . | . . . Hacking Detections 9 | . 9 . Full Trace Events . | . . . Feedback Events . | . . . Feedback Blocked . | . . . Robot Schematics Acquired . | . . . Robots Built . | . . . Authchips . | . . . Time . | . . . Total Robot Build Rating . | . . . Part Schematics Acquired . | . . . Parts Built . | . . . Authchips . | . . . Time . | . . . Total Part Build Rating . | . . . Parts Repaired 2 | . 2 . Time 52 | . 52 . Parts Recycled . | . . . Recycled Matter . | . . . Retrieved Matter . | . . . Retrieved Components . | . . . Parts Scanalyzed . | . . . Part Schematics Acquired . | . . . Parts Damaged . | . . . Bothacking | -11 -10 -10 ------------ Run | Yrd Mat Sub Used RIF Installer . | . . . Robots Hacked . | . . . Non-combat . | . . . Combat . | . . . Robot Hacks Applied . | . . . Relay Couplers Released . | . . . Fabnet Peak Effective % . | . . . Robots Rewired . | . . . Allies Hacked . | . . . Hacks Repelled . | . . . Allies | -11 -10 -10 -------- Run | Yrd Mat Sub Total Allies . | . . . Largest Group . | . . . Highest-Rated Group . | . . . Highest-Rated Ally . | . . . Total Orders . | . . . Ally Attacks . | . . . Total Damage . | . . . Kills . | . . . Allies Corrupted . | . . . Allies Melted . | . . . Intel | -11 -10 -10 ------- Run | Yrd Mat Sub Robot Analysis Total . | . . . Derelict Logs Recovered 1 | . . 1 Drone Launches . | . . . Drone Recoveries . | . . . Exploration | -11 -10 -10 ------------- Run | Yrd Mat Sub Turns Passed 3308 | 16 1304 1988 Spaces Moved 1786 | 9 657 1120 Core . | . . . Treads 1786 | 9 657 1120 Legs . | . . . Wheels . | . . . Hover . | . . . Flight . | . . . Fastest Speed 160 | 160 160 160 Average Speed 160 | 160 160 160 Slowest Speed 160 | 160 160 160 Overloaded Moves . | . . . Propulsion Burnouts . | . . . Robots Hopped . | . . . Cave-ins Triggered . | . . . Exploration Rate (%) 59 | 3 97 79 Regions Visited 2 Branch Regions 1 Pre-discovered Areas 2 | . . 2 Known Exits Taken 1 | . 1 . Unknown Exits Taken 1 | 1 . . Scrap Searched 8 | . . 8 Spaces Dug 2 | . . 2 Terrain Destroyed 40 | . 10 30 Melee . | . . . Projectile 3 | . . 3 AOE 37 | . 10 27 Terrain Rammed . | . . . Walls Destroyed . | . . . Machines Disabled . | . . . Actions | -11 -10 -10 --------- Run | Yrd Mat Sub Total 2106 | 10 847 1249 Wait 203 | . 141 62 Move 1784 | 8 656 1120 Hop . | . . . Pick Up 12 | . 5 7 Fast Attach 6 | . 4 2 Attach 2 | . . 2 Detach . | . . . Swap 11 | 2 4 5 Drop 12 | . 6 6 Fire 76 | . 31 45 Melee . | . . . Ram . | . . . Kick . | . . . Crush . | . . . Escape Stasis . | . . . Rewire . | . . . Trap . | . . . Miscellaneous . | . . . Route ------- -11/Scrapyard -10/Materials (discovered 5 exits: *Mat x3 / *Min / *Sub) -10/Subcaves (discovered 1 exit: *Mat) History --------- Turn | Location | Event 4 | -11/Scrapyard | Discovered new exit (range 3) 17 | -11/Scrapyard | Entered Materials 305 | -10/Materials | Build established: Mutant 389 | -10/Materials | Discovered new exit (range 8) 402 | -10/Materials | Identified exit to Materials 590 | -10/Materials | Discovered exit to Materials (range 5) 637 | -10/Materials | Discovered new exit (range 9) 700 | -10/Materials | Identified exit to Mines 857 | -10/Materials | Repaired EM Pulse Gun 884 | -10/Materials | Repaired Lgt. Treads 1082 | -10/Materials | Discovered exit to Materials (range 15) 1308 | -10/Materials | Discovered new exit (range 8) 1319 | -10/Materials | Identified exit to Subcaves 1321 | -10/Materials | Entered Subcaves 1567 | -10/Subcaves | Shifting Twisted Machinery released Sub. Beam Cannon 1567 | -10/Subcaves | Shifting Twisted Machinery released Sub. Machine Gun 1738 | -10/Subcaves | Discovered new exit (range 13) 1799 | -10/Subcaves | Identified exit to Materials 2166 | -10/Subcaves | Learned location of Zion (-6) 2166 | -10/Subcaves | Met a Zionite searching for "candidates" 2320 | -10/Subcaves | Core integrity fell below 50% 2448 | -10/Subcaves | Disturbed a concealed Subdweller 2930 | -10/Subcaves | Shifting Twisted Machinery released Scrap Shield 2933 | -10/Subcaves | Shifting Twisted Machinery released Sub. Beam Cannon 3052 | -10/Subcaves | A swath of the cavern ceiling suddenly collapsed 3208 | -10/Subcaves | Learned location of Recycling (-8) 3293 | -10/Subcaves | Core integrity fell below 20% 3309 | -10/Subcaves | Destroyed by HC-5DJ(R) with Subdweller Beam Cannon Last Messages --------------- 02958_ Acquired 10 matter. 02979_ System corrupted: Matter fused (-10). 02979_ Acquired 10 matter. 02998_ System corrupted: Heat flow error (+123). 03031_ System corrupted: Matter fused (-6). A swath of the cavern ceiling suddenly collapses. 03063_ System corrupted: Matter fused (-5). 03096_ System corrupted: Component data lost. 03185_ System corrupted: Matter fused (-6). 03198_ Acquired 17 matter. 03208_ Acquired derelict log, extracted data. World map updated: -8/Recycling. 03275_ Sub. Beam Cannon shoots sparks and powers down. 03278_ Dropped Broken Sub. Beam Cannon. 03278_ Assault Rifle destroyed. 03279_ U2RCT/:V#I&H9ISVIZM3>%PX 03295_ BR-LZL(R) destroyed. 03298_ Acquired 39 matter. Map ----- +----------------------------------------------------+ | ??????????????## #### #??# ####????# | | ???????????????####??## ###??# ###### | | ??????????????????###?# ###??# ## ### | | ?????????????????## ##### ##?# ## | | ????????????????## ## ## ### | | ????????????????# | | ????????????????# | | ????????????????# ## # | | ????????????????# ###### ## ### | | ???????????????## ###????####### #?## ## | | ???????????????# ##???????????###??#### ##### | | ???????????????# ##?????????????????# #???? | | ??????????###### ##????????????????# #???? | | ??????????# #????????????????## #?# # | | ??????????# ##?????????????????## ### | | ?????????## /## ##????? ?????"??????## # | | ?????????# %# #?????? ??#?""??????## ## | | ?????????### &%# ####???# ""#" ??????# ## | | ??????????# " ###&*" ##### """" #??#### ## | | ??????????#"" # """" # #"""####[## # | | ??????????#"""" ##""### """ "## ""#### | | ??????????###"# "####??# " ##??? | | ????????????### ##?###??# "" #???? | | ?????????????## "### #### "" # #"#???? | | ????????????##" ""=& ###"" [ #######???? | | ????????????# " ]%& @ ##?##" ##???##?### | | ???????????#""""" ]&### ###??## ### #?# | | ???????????##""""##"#?#R #???##" #?## | | ????????????### ###"" #??## #?## | | ??????????????###?#" ##??# ##### | | ?????????????????? "########???# #??# | | ?????????????????? #??????????# #??## | | ?????????????????# "??????????## ###???## | | ?????????????????? ????????????## ##??????## | | ?????????????????? ????????????# ##????????? | | ??????????????????????????????## ####?????????? | | ?????????????????????????????## ##????????????? | | ?????????????????????????????# ##?????????????? | | ?????????????????????????????# ##??????????????? | | ?????????????????????????????# #???????????????? | | ?????????????????????????????# #???????????????? | | ???????????????????????????### ####?????????????? | | ???????????????????????????# ## ##????????????? | | ???????????????????????????# #????????????? | | ???????????????????????????## #????????????? | | ????????????????????????????# ##????????????? | | ???????????????????????????## ##?????????????? | | ??????????????????????????## #??????????????? | | ???????????????????? ?????# ##??????????????? | | ?????????????????? ????# #???????????????? | +----------------------------------------------------+ Best States ------------- Heat Dissipation 25 Energy Generation 15 Energy Capacity 250 Matter Stores 300 Matter Capacity 300 Sight Range 16 Terrain Scan Density 10 Evasion (%) 40 Recoil Reduction 2 Item Schematics ----------------- None Robot Schematics ------------------ None Fabricated ------------ Nothing Alien Tech Used ----------------- None Achievements -------------- None Challenges ------------ None Game ------ Seed ResetTrapCycler Manual? 0 Play Time 00:31:04 Cumulative 43.0 hours Start 2024.04.20 @ 21:06:29 End 2024.04.20 @ 23:18:31 Sessions 2 Manual Loads 0 Difficulty Rogue Special Mode None Game No. 36 Rogue 36 Adventurer 0 Explorer 0 Win Type - Total 0 Types 0/0/0/0/0/0/0/0/0 Lore% 21 Gallery% 30 Achievement% 30 Wizard Run 0 Options --------- Layout 1 ASCII 0 Keyboard 1 Movement Numpad Keybinds 1 Fullscreen 1 Font 24/Smallcaps Map View 50x35 Zoom Use 0% Tactical HUD 1 Map Filters NONE Filters NONE Steam 1 RUN: 629cdc0a-9276-4e17-ad4c-6bc8ff118aa7